[Event "*** Titled Tuesday 3|2 Blitz"]
[Site "Chess.com"]
[Date "2016.01.05"]
[Round "2"]
[White "levallem"]
[Black "tac49"]
[Result "0-1"]
[WhiteElo "2162"]
[BlackElo "2475"]
[TimeControl "180+2"]
[EndTime "11:24:11 PST"]
[Termination "tac49 won by checkmate"]

1. d4 {[%clk 0:03:01.9]} 1... Nf6 {[%clk 0:02:57.9]} 2. c4 {[%clk 0:03:02.5]}
2... g6 {[%clk 0:02:59.8]} 3. Nf3 {[%clk 0:03:03.6]} 3... Bg7 {[%clk 0:03:01.7]}
4. g3 {[%clk 0:03:05.1]} 4... O-O {[%clk 0:02:59.7]} 5. Bg2 {[%clk 0:03:06.2]}
5... d6 {[%clk 0:03:00.8]} 6. O-O {[%clk 0:03:07.2]} 6... Nc6 {[%clk 0:03:01.7]}
7. Nc3 {[%clk 0:03:07.4]} 7... Bf5 {[%clk 0:02:56.4]} 8. b3 {[%clk 0:03:01.5]}
8... Qd7 {[%clk 0:02:51.4]} 9. Bb2 {[%clk 0:03:01]} 9... Bh3 {[%clk 0:02:51.1]}
10. Qd2 {[%clk 0:02:54.1]} 10... Bxg2 {[%clk 0:02:49.3]} 11. Kxg2 {[%clk
0:02:56]} 11... a6 {[%clk 0:02:42.2]} 12. d5 {[%clk 0:02:38.3]} 12... Na5 {[%clk
0:02:39.6]} 13. Nd4 {[%clk 0:02:24.6]} 13... c5 {[%clk 0:02:38]} 14. dxc6 {[%clk
0:02:24.2]} 14... bxc6 {[%clk 0:02:32.7]} 15. Rad1 {[%clk 0:02:25]} 15... c5
{[%clk 0:02:29]} 16. Nf3 {[%clk 0:02:15.3]} 16... Rab8 {[%clk 0:02:28.5]} 17.
Nd5 {[%clk 0:02:12.6]} 17... Nxd5 {[%clk 0:01:50.7]} 18. Bxg7 {[%clk 0:02:14.5]}
18... Kxg7 {[%clk 0:01:52]} 19. Qxd5 {[%clk 0:02:13.6]} 19... Qb7 {[%clk
0:01:35]} 20. e4 {[%clk 0:02:05.5]} 20... Nc6 {[%clk 0:01:31.5]} 21. Rfe1 {[%clk
0:01:11.6]} 21... f6 {[%clk 0:01:26.8]} 22. h4 {[%clk 0:01:06.9]} 22... Ne5
{[%clk 0:01:24.7]} 23. Nxe5 {[%clk 0:01:04.2]} 23... fxe5 {[%clk 0:01:24]} 24.
Qxb7 {[%clk 0:01:03.6]} 24... Rxb7 {[%clk 0:01:24]} 25. Re3 {[%clk 0:00:59.4]}
25... a5 {[%clk 0:01:24.4]} 26. Rf3 {[%clk 0:00:52]} 26... Ra8 {[%clk
0:01:23.6]} 27. a4 {[%clk 0:00:47.4]} 27... Rab8 {[%clk 0:01:19.1]} 28. Rdd3
{[%clk 0:00:48.3]} 28... h6 {[%clk 0:01:19.3]} 29. Rfe3 {[%clk 0:00:47.5]} 29...
Rf8 {[%clk 0:01:12.1]} 30. Rf3 {[%clk 0:00:47.3]} 30... Rf6 {[%clk 0:01:05.9]}
31. Rxf6 {[%clk 0:00:31.4]} 31... Kxf6 {[%clk 0:01:07.8]} 32. f3 {[%clk
0:00:25.4]} 32... Ke6 {[%clk 0:01:06.9]} 33. Kf2 {[%clk 0:00:24.3]} 33... Kd7
{[%clk 0:01:05.2]} 34. g4 {[%clk 0:00:24.7]} 34... e6 {[%clk 0:01:03.7]} 35. Kg3
{[%clk 0:00:22.7]} 35... Kc6 {[%clk 0:01:03.2]} 36. f4 {[%clk 0:00:23.4]} 36...
exf4+ {[%clk 0:01:02.9]} 37. Kxf4 {[%clk 0:00:25.3]} 37... Rf7+ {[%clk
0:01:03.8]} 38. Kg3 {[%clk 0:00:25.5]} 38... Rf1 {[%clk 0:00:54.7]} 39. Re3
{[%clk 0:00:22.5]} 39... Kd7 {[%clk 0:00:51.6]} 40. Rf3 {[%clk 0:00:20.5]} 40...
Rb1 {[%clk 0:00:47.3]} 41. Kf4 {[%clk 0:00:18.8]} 41... Ke7 {[%clk 0:00:42.2]}
42. Kg3 {[%clk 0:00:20]} 42... Rb2 {[%clk 0:00:40]} 43. g5 {[%clk 0:00:20.2]}
43... hxg5 {[%clk 0:00:36.7]} 44. hxg5 {[%clk 0:00:22.1]} 44... Re2 {[%clk
0:00:29.5]} 45. Rf6 {[%clk 0:00:15.7]} 45... Rxe4 {[%clk 0:00:29]} 46. Rxg6
{[%clk 0:00:16.2]} 46... Re3+ {[%clk 0:00:29.8]} 47. Kf4 {[%clk 0:00:17.3]}
47... Rxb3 {[%clk 0:00:30.9]} 48. Rg7+ {[%clk 0:00:18.6]} 48... Kf8 {[%clk
0:00:30.6]} 49. Ra7 {[%clk 0:00:19.1]} 49... Rb4 {[%clk 0:00:21.3]} 50. Rxa5
{[%clk 0:00:15.6]} 50... Rxc4+ {[%clk 0:00:21.4]} 51. Ke3 {[%clk 0:00:15.7]}
51... Kf7 {[%clk 0:00:20.9]} 52. Ra6 {[%clk 0:00:14.9]} 52... d5 {[%clk
0:00:21]} 53. a5 {[%clk 0:00:08.2]} 53... Ra4 {[%clk 0:00:17.6]} 54. g6+ {[%clk
0:00:08.7]} 54... Kxg6 {[%clk 0:00:15.3]} 55. Rxe6+ {[%clk 0:00:09]} 55... Kf5
{[%clk 0:00:16.3]} 56. Rc6 {[%clk 0:00:10.3]} 56... Rxa5 {[%clk 0:00:14.5]} 57.
Kd3 {[%clk 0:00:10.7]} 57... Ke5 {[%clk 0:00:14]} 58. Rc8 {[%clk 0:00:11.9]}
58... c4+ {[%clk 0:00:14.3]} 59. Kc3 {[%clk 0:00:13.4]} 59... Ra3+ {[%clk
0:00:15.4]} 60. Kc2 {[%clk 0:00:15]} 60... Rd3 {[%clk 0:00:15.7]} 61. Rh8 {[%clk
0:00:16.9]} 61... Kd4 {[%clk 0:00:16.9]} 62. Rh4+ {[%clk 0:00:18]} 62... Kc5
{[%clk 0:00:18.2]} 63. Rh8 {[%clk 0:00:19.9]} 63... Rg3 {[%clk 0:00:18.9]} 64.
Rc8+ {[%clk 0:00:21.3]} 64... Kd4 {[%clk 0:00:19.7]} 65. Rh8 {[%clk 0:00:22.9]}
65... Rg2+ {[%clk 0:00:20.7]} 66. Kc1 {[%clk 0:00:23.7]} 66... c3 {[%clk
0:00:20.1]} 67. Rh4+ {[%clk 0:00:24.9]} 67... Kd3 {[%clk 0:00:20.7]} 68. Rh3+
{[%clk 0:00:26.4]} 68... Kc4 {[%clk 0:00:21.7]} 69. Rh4+ {[%clk 0:00:26.2]}
69... d4 {[%clk 0:00:22.4]} 70. Rh8 {[%clk 0:00:26.7]} 70... Rg1+ {[%clk
0:00:22.9]} 71. Kc2 {[%clk 0:00:27.4]} 71... d3# {[%clk 0:00:24.8]} 0-1

[Event "*** Titled Tuesday 3|2 Blitz"]
[Site "Chess.com"]
[Date "2016.01.05"]
[Round "2"]
[White "AlexanderL"]
[Black "AndroQueen"]
[Result "1/2-1/2"]
[WhiteElo "2537"]
[BlackElo "2454"]
[TimeControl "180+2"]
[EndTime "11:24:17 PST"]
[Termination "Game drawn by agreement"]

1. d4 {[%clk 0:02:50.2]} 1... Nf6 {[%clk 0:03:00.3]} 2. Bf4 {[%clk 0:02:50.1]}
2... g6 {[%clk 0:02:40.6]} 3. Nc3 {[%clk 0:02:35.2]} 3... Bg7 {[%clk 0:02:29.6]}
4. e4 {[%clk 0:02:33.8]} 4... d6 {[%clk 0:02:30.7]} 5. h3 {[%clk 0:02:28.1]}
5... O-O {[%clk 0:02:31.3]} 6. Nf3 {[%clk 0:02:28.5]} 6... Nc6 {[%clk
0:02:11.5]} 7. Be2 {[%clk 0:02:16.8]} 7... Nd7 {[%clk 0:01:56.9]} 8. O-O {[%clk
0:02:16]} 8... e5 {[%clk 0:01:52.7]} 9. dxe5 {[%clk 0:02:16.7]} 9... Ndxe5
{[%clk 0:01:53.5]} 10. Nxe5 {[%clk 0:02:16.7]} 10... Nxe5 {[%clk 0:01:50.7]} 11.
Qd2 {[%clk 0:02:15.5]} 11... Be6 {[%clk 0:01:51]} 12. Bg5 {[%clk 0:02:09.7]}
12... Qd7 {[%clk 0:01:45.2]} 13. Nd5 {[%clk 0:01:58.5]} 13... f6 {[%clk
0:01:45.7]} 14. Be3 {[%clk 0:01:56.7]} 14... c6 {[%clk 0:01:32.2]} 15. Nc3
{[%clk 0:01:55.8]} 15... Nc4 {[%clk 0:01:19.4]} 16. Bxc4 {[%clk 0:01:56]} 16...
Bxc4 {[%clk 0:01:21.3]} 17. Rfd1 {[%clk 0:01:57.1]} 17... f5 {[%clk 0:01:06.1]}
18. Qxd6 {[%clk 0:01:50.8]} 18... Qxd6 {[%clk 0:01:07]} 19. Rxd6 {[%clk
0:01:52.7]} 19... Bxc3 {[%clk 0:00:31]} 20. bxc3 {[%clk 0:01:53.4]} 20... fxe4
{[%clk 0:00:32.7]} 21. Rd4 {[%clk 0:01:51.5]} 21... Bd5 {[%clk 0:00:24.5]} 22.
c4 {[%clk 0:01:51.4]} 22... Be6 {[%clk 0:00:24]} 23. Rad1 {[%clk 0:01:48.1]}
23... Rfe8 {[%clk 0:00:17.2]} 24. Rxe4 {[%clk 0:01:47.2]} 24... Bf7 {[%clk
0:00:15.5]} 25. Rxe8+ {[%clk 0:01:45.5]} 25... Rxe8 {[%clk 0:00:17.4]} 26. Rd7
{[%clk 0:01:45.5]} 26... Bxc4 {[%clk 0:00:08.1]} 27. Rxb7 {[%clk 0:01:46.4]}
27... Bxa2 {[%clk 0:00:09.4]} 28. Rxa7 {[%clk 0:01:47.7]} 28... Bf7 {[%clk
0:00:10.5]} 29. g4 {[%clk 0:01:46]} 29... h5 {[%clk 0:00:09.6]} 30. gxh5 {[%clk
0:01:45.2]} 30... gxh5 {[%clk 0:00:11.5]} 31. Kh2 {[%clk 0:01:43.3]} 31... Kg7
{[%clk 0:00:12.3]} 32. Kg3 {[%clk 0:01:42.7]} 32... Kg6 {[%clk 0:00:13.7]} 33.
Ra5 {[%clk 0:01:39.9]} 33... Bd5 {[%clk 0:00:14.6]} 34. Rc5 {[%clk 0:01:40.3]}
34... Re4 {[%clk 0:00:13.5]} 35. Ra5 {[%clk 0:01:29.5]} 35... Rc4 {[%clk
0:00:13.8]} 36. Ra1 {[%clk 0:00:43.9]} 36... Rxc2 {[%clk 0:00:13.6]} 37. Rg1
{[%clk 0:00:43.1]} 37... Rc4 {[%clk 0:00:10.6]} 38. Kh2+ {[%clk 0:00:42.2]}
38... Kf7 {[%clk 0:00:11.8]} 39. Rg5 {[%clk 0:00:41.6]} 39... h4 {[%clk
0:00:12.8]} 40. Rh5 {[%clk 0:00:42.9]} 40... Kg6 {[%clk 0:00:11.3]} 41. Rg5+
{[%clk 0:00:39.2]} 41... Kf7 {[%clk 0:00:12.7]} 42. Rg4 {[%clk 0:00:37.4]} 42...
Be6 {[%clk 0:00:07.2]} 43. Rg1 {[%clk 0:00:32.6]} 43... Bd5 {[%clk 0:00:07.4]}
44. Rg5 {[%clk 0:00:27.7]} 44... Be6 {[%clk 0:00:04.5]} 45. Rh5 {[%clk
0:00:26.8]} 45... Bd5 {[%clk 0:00:04.6]} 46. Rh6 {[%clk 0:00:25.6]} 46... Ra4
{[%clk 0:00:03.4]} 47. Bg5 {[%clk 0:00:26.3]} 47... Ra1 {[%clk 0:00:04.5]} 48.
Bxh4 {[%clk 0:00:23.2]} 48... Rh1+ {[%clk 0:00:05]} 49. Kg3 {[%clk 0:00:24.3]}
49... Rg1+ {[%clk 0:00:03.8]} 50. Kf4 {[%clk 0:00:24.7]} 50... Rh1 {[%clk
0:00:05.4]} 51. Bg5 {[%clk 0:00:25.4]} 51... Rf1 {[%clk 0:00:05]} 52. Rf6+
{[%clk 0:00:22.3]} 52... Kg7 {[%clk 0:00:05.7]} 53. Ke5 {[%clk 0:00:22.5]} 53...
Re1+ {[%clk 0:00:06.4]} 54. Kd6 {[%clk 0:00:23.4]} 54... Rh1 {[%clk 0:00:05.8]}
55. h4 {[%clk 0:00:24.5]} 55... Rf1 {[%clk 0:00:04.7]} 56. f4 {[%clk 0:00:24]}
56... Bf7 {[%clk 0:00:05.7]} 57. Kxc6 {[%clk 0:00:22.9]} 57... Rc1+ {[%clk
0:00:06.5]} 58. Kd6 {[%clk 0:00:23.3]} 58... Rd1+ {[%clk 0:00:07.8]} 59. Ke5
{[%clk 0:00:24.6]} 59... Re1+ {[%clk 0:00:09.3]} 60. Kf5 {[%clk 0:00:25.1]}
60... Bd5 {[%clk 0:00:07.4]} 61. Rd6 {[%clk 0:00:17.7]} 61... Be4+ {[%clk
0:00:07.8]} 62. Ke5 {[%clk 0:00:18.7]} 62... Bg2+ {[%clk 0:00:07.8]} 63. Kd4
{[%clk 0:00:17.8]} 63... Rd1+ {[%clk 0:00:08.8]} 64. Ke5 {[%clk 0:00:17.9]}
64... Rxd6 {[%clk 0:00:07]} 65. Kxd6 {[%clk 0:00:19.1]} 65... Kg6 {[%clk
0:00:08.2]} 66. Ke5 {[%clk 0:00:19.8]} 66... Bh3 {[%clk 0:00:09.5]} 67. Bd8
{[%clk 0:00:20.7]} 67... Bc8 {[%clk 0:00:10.3]} 68. Ba5 {[%clk 0:00:17.8]} 68...
Bg4 {[%clk 0:00:11.2]} 69. Be1 {[%clk 0:00:18.6]} 69... Bc8 {[%clk 0:00:12.1]}
70. Kd6 {[%clk 0:00:18.3]} 70... Bg4 {[%clk 0:00:10.8]} 71. Ke7 {[%clk
0:00:18.9]} 71... Bf5 {[%clk 0:00:10.5]} 72. Kf8 {[%clk 0:00:19.8]} 72... Bg4
{[%clk 0:00:11.6]} 73. Bg3 {[%clk 0:00:21.1]} 73... Bf5 {[%clk 0:00:12.7]}
1/2-1/2

[Event "*** Titled Tuesday 3|2 Blitz"]
[Site "Chess.com"]
[Date "2016.01.05"]
[Round "2"]
[White "saraswathii"]
[Black "BjarkeSahl"]
[Result "1/2-1/2"]
[WhiteElo "1913"]
[BlackElo "2115"]
[TimeControl "180+2"]
[EndTime "11:24:29 PST"]
[Termination "Game drawn - insufficient material"]

1. e4 {[%clk 0:02:57.2]} 1... e5 {[%clk 0:02:53]} 2. d3 {[%clk 0:02:57.3]} 2...
Nf6 {[%clk 0:02:23.6]} 3. Nf3 {[%clk 0:02:58.1]} 3... Nc6 {[%clk 0:02:24]} 4. g3
{[%clk 0:02:51.8]} 4... Bc5 {[%clk 0:02:21.3]} 5. Bg2 {[%clk 0:02:50.1]} 5... d6
{[%clk 0:02:19.8]} 6. O-O {[%clk 0:02:36.1]} 6... a6 {[%clk 0:02:09.5]} 7. c3
{[%clk 0:02:36.4]} 7... Bg4 {[%clk 0:01:51.4]} 8. h3 {[%clk 0:02:26.1]} 8... Be6
{[%clk 0:01:45.8]} 9. d4 {[%clk 0:02:19]} 9... Ba7 {[%clk 0:01:44.7]} 10. d5
{[%clk 0:02:19.4]} 10... Nxe4 {[%clk 0:01:40.7]} 11. dxe6 {[%clk 0:02:17.5]}
11... O-O {[%clk 0:01:29.7]} 12. exf7+ {[%clk 0:02:05.2]} 12... Rxf7 {[%clk
0:01:30.7]} 13. Qd5 {[%clk 0:02:00]} 13... Nxg3 {[%clk 0:01:17.7]} 14. Ng5
{[%clk 0:01:55.2]} 14... Qf6 {[%clk 0:01:19]} 15. Qxf7+ {[%clk 0:01:51.5]} 15...
Qxf7 {[%clk 0:01:19.5]} 16. Nxf7 {[%clk 0:01:53.4]} 16... Nxf1 {[%clk
0:01:17.3]} 17. Bd5 {[%clk 0:01:51.2]} 17... Ng3 {[%clk 0:01:00.5]} 18. Nxd6+
{[%clk 0:01:41.2]} 18... Kf8 {[%clk 0:01:01.1]} 19. Nxb7 {[%clk 0:01:38.7]}
19... Ne7 {[%clk 0:00:58.9]} 20. Bf3 {[%clk 0:01:30]} 20... Rb8 {[%clk
0:00:50.6]} 21. Kg2 {[%clk 0:01:12.8]} 21... Ngf5 {[%clk 0:00:47.1]} 22. b4
{[%clk 0:01:09.6]} 22... Nh4+ {[%clk 0:00:37.6]} 23. Kg3 {[%clk 0:01:09.8]}
23... Nef5+ {[%clk 0:00:36.5]} 24. Kg4 {[%clk 0:01:09.9]} 24... h5+ {[%clk
0:00:33.7]} 25. Kg5 {[%clk 0:01:07.2]} 25... Nxf3+ {[%clk 0:00:35]} 26. Kxf5
{[%clk 0:01:03.8]} 26... Rxb7 {[%clk 0:00:36.2]} 27. Be3 {[%clk 0:01:01.4]}
27... Bxe3 {[%clk 0:00:32.9]} 28. fxe3 {[%clk 0:01:03.3]} 28... c6 {[%clk
0:00:32.1]} 29. Ke4 {[%clk 0:00:56.5]} 29... Rf7 {[%clk 0:00:32.5]} 30. Na3
{[%clk 0:00:53.3]} 30... Nd2+ {[%clk 0:00:31.1]} 31. Kd3 {[%clk 0:00:53.2]}
31... Rd7+ {[%clk 0:00:32.2]} 32. Kc2 {[%clk 0:00:51.7]} 32... Ne4 {[%clk
0:00:33.7]} 33. Nc4 {[%clk 0:00:50.5]} 33... Re7 {[%clk 0:00:29.5]} 34. Rf1+
{[%clk 0:00:49.5]} 34... Nf6 {[%clk 0:00:30.1]} 35. Rf5 {[%clk 0:00:48.9]} 35...
e4 {[%clk 0:00:31.2]} 36. Ne5 {[%clk 0:00:48.6]} 36... Kg8 {[%clk 0:00:29.1]}
37. Nxc6 {[%clk 0:00:48.6]} 37... Rc7 {[%clk 0:00:25]} 38. Nd4 {[%clk
0:00:48.3]} 38... Kf7 {[%clk 0:00:25.5]} 39. Rg5 {[%clk 0:00:48]} 39... g6
{[%clk 0:00:26.4]} 40. Ra5 {[%clk 0:00:45.5]} 40... Ra7 {[%clk 0:00:19.7]} 41.
b5 {[%clk 0:00:45.6]} 41... Nd5 {[%clk 0:00:19.4]} 42. Kd2 {[%clk 0:00:45.8]}
42... Nb6 {[%clk 0:00:18]} 43. Rxa6 {[%clk 0:00:45.7]} 43... Rxa6 {[%clk
0:00:17.4]} 44. bxa6 {[%clk 0:00:46.8]} 44... Ke7 {[%clk 0:00:18]} 45. Nb5
{[%clk 0:00:43.8]} 45... Kd7 {[%clk 0:00:18.1]} 46. Kc2 {[%clk 0:00:44.9]} 46...
Kc6 {[%clk 0:00:19.5]} 47. Nd4+ {[%clk 0:00:43.7]} 47... Kc5 {[%clk 0:00:19.9]}
48. Kb3 {[%clk 0:00:42.4]} 48... Na8 {[%clk 0:00:16.3]} 49. Ne6+ {[%clk
0:00:43]} 49... Kb6 {[%clk 0:00:17]} 50. Nf4 {[%clk 0:00:43]} 50... Kxa6 {[%clk
0:00:16.6]} 51. Nxg6 {[%clk 0:00:44.1]} 51... Kb5 {[%clk 0:00:18.2]} 52. Nf4
{[%clk 0:00:44.5]} 52... h4 {[%clk 0:00:19.4]} 53. c4+ {[%clk 0:00:45.1]} 53...
Kc5 {[%clk 0:00:17.2]} 54. Ng6 {[%clk 0:00:44.8]} 54... Nb6 {[%clk 0:00:17.9]}
55. Ne5 {[%clk 0:00:45.1]} 55... Kd6 {[%clk 0:00:18.9]} 56. Ng6 {[%clk
0:00:38.1]} 56... Kc5 {[%clk 0:00:19.7]} 57. Nf8 {[%clk 0:00:26.5]} 57... Nxc4
{[%clk 0:00:20.6]} 58. Nd7+ {[%clk 0:00:21.2]} 58... Kd5 {[%clk 0:00:11.4]} 59.
Nf6+ {[%clk 0:00:21.8]} 59... Kc5 {[%clk 0:00:12.2]} 60. Nxe4+ {[%clk
0:00:22.7]} 60... Kd5 {[%clk 0:00:13.8]} 61. Nc3+ {[%clk 0:00:23.3]} 61... Kc5
{[%clk 0:00:15.2]} 62. e4 {[%clk 0:00:16.9]} 62... Nd2+ {[%clk 0:00:15]} 63. Kc2
{[%clk 0:00:17.5]} 63... Nf3 {[%clk 0:00:16.1]} 64. Ne2 {[%clk 0:00:16.5]} 64...
Ng5 {[%clk 0:00:16]} 65. Kd3 {[%clk 0:00:08.8]} 65... Nxh3 {[%clk 0:00:17]} 66.
e5 {[%clk 0:00:08.8]} 66... Kd5 {[%clk 0:00:16.4]} 67. Ke3 {[%clk 0:00:06.5]}
67... Kxe5 {[%clk 0:00:17]} 68. a4 {[%clk 0:00:07.1]} 68... Ng5 {[%clk
0:00:16.3]} 69. Ng1 {[%clk 0:00:07.9]} 69... Kd5 {[%clk 0:00:15.6]} 70. Nf3
{[%clk 0:00:08.9]} 70... Nxf3 {[%clk 0:00:14.8]} 71. Kxf3 {[%clk 0:00:10.3]}
71... Kc4 {[%clk 0:00:15.6]} 72. Kg4 {[%clk 0:00:11.5]} 72... Kb4 {[%clk
0:00:17.1]} 73. Kxh4 {[%clk 0:00:12.6]} 73... Kxa4 {[%clk 0:00:18.7]} 1/2-1/2

[Event "*** Titled Tuesday 3|2 Blitz"]
[Site "Chess.com"]
[Date "2016.01.05"]
[Round "2"]
[White "DeviatkinAndrey"]
[Black "Lupul_Cenusiu"]
[Result "0-1"]
[WhiteElo "2503"]
[BlackElo "2374"]
[TimeControl "180+2"]
[EndTime "11:25:10 PST"]
[Termination "Lupul_Cenusiu won by resignation"]

1. e4 {[%clk 0:02:59.9]} 1... d6 {[%clk 0:03:00.5]} 2. d4 {[%clk 0:02:58.3]}
2... Nf6 {[%clk 0:03:01.3]} 3. Nc3 {[%clk 0:02:58.6]} 3... g6 {[%clk 0:03:02.6]}
4. g3 {[%clk 0:02:59.6]} 4... Bg7 {[%clk 0:03:03.2]} 5. Bg2 {[%clk 0:03:00.4]}
5... O-O {[%clk 0:03:03.7]} 6. Nge2 {[%clk 0:03:00.7]} 6... Nbd7 {[%clk
0:03:03.7]} 7. O-O {[%clk 0:03:00.1]} 7... c5 {[%clk 0:03:04.6]} 8. h3 {[%clk
0:02:50.7]} 8... a6 {[%clk 0:03:02.1]} 9. Be3 {[%clk 0:02:48.6]} 9... Qc7 {[%clk
0:03:03.2]} 10. Qd2 {[%clk 0:02:43.6]} 10... cxd4 {[%clk 0:02:59.5]} 11. Nxd4
{[%clk 0:02:40.9]} 11... Ne5 {[%clk 0:02:59.6]} 12. b3 {[%clk 0:02:42.2]} 12...
Bd7 {[%clk 0:02:55]} 13. Nd5 {[%clk 0:02:39.1]} 13... Nxd5 {[%clk 0:02:51.2]}
14. exd5 {[%clk 0:02:40.3]} 14... Be8 {[%clk 0:02:35.1]} 15. Rae1 {[%clk
0:02:32.7]} 15... Rc8 {[%clk 0:02:27.3]} 16. c4 {[%clk 0:02:16.5]} 16... Nd7
{[%clk 0:02:23.3]} 17. f4 {[%clk 0:02:11]} 17... Nf6 {[%clk 0:02:20.7]} 18. Rc1
{[%clk 0:01:59]} 18... Bd7 {[%clk 0:02:14.4]} 19. g4 {[%clk 0:01:58.9]} 19...
Rce8 {[%clk 0:01:58.4]} 20. f5 {[%clk 0:01:58.1]} 20... Bc8 {[%clk 0:01:58.1]}
21. Bh6 {[%clk 0:01:54.8]} 21... Qc5 {[%clk 0:01:47]} 22. Be3 {[%clk 0:01:54.8]}
22... Qc7 {[%clk 0:01:47.2]} 23. a4 {[%clk 0:01:37.1]} 23... Nd7 {[%clk
0:01:44.9]} 24. Kh1 {[%clk 0:01:32.5]} 24... Ne5 {[%clk 0:01:43.2]} 25. Rf2
{[%clk 0:01:25.5]} 25... Bd7 {[%clk 0:01:39.9]} 26. a5 {[%clk 0:01:20.9]} 26...
Kh8 {[%clk 0:01:33.1]} 27. Rcf1 {[%clk 0:01:19.2]} 27... Kg8 {[%clk 0:01:30.6]}
28. Ne2 {[%clk 0:00:47.9]} 28... Qc8 {[%clk 0:01:24.7]} 29. Ng3 {[%clk 0:00:48]}
29... Bf6 {[%clk 0:01:14.6]} 30. Ne4 {[%clk 0:00:47]} 30... gxf5 {[%clk
0:01:10.1]} 31. Nxf6+ {[%clk 0:00:42.2]} 31... exf6 {[%clk 0:01:11.3]} 32. Rxf5
{[%clk 0:00:43.1]} 32... Bxf5 {[%clk 0:01:11]} 33. Rxf5 {[%clk 0:00:44.5]} 33...
Kh8 {[%clk 0:01:11.2]} 34. Rxf6 {[%clk 0:00:45.3]} 34... Rg8 {[%clk 0:01:11.3]}
35. Bd4 {[%clk 0:00:43]} 35... Qc7 {[%clk 0:00:56.7]} 36. Qf4 {[%clk 0:00:43.2]}
36... Rg7 {[%clk 0:00:56.7]} 37. Be4 {[%clk 0:00:26.7]} 37... Kg8 {[%clk
0:00:55.5]} 38. Bc3 {[%clk 0:00:25.5]} 38... Qe7 {[%clk 0:00:55.2]} 39. Bf5
{[%clk 0:00:18.7]} 39... Qd8 {[%clk 0:00:51.6]} 40. Kh2 {[%clk 0:00:18.9]} 40...
Kf8 {[%clk 0:00:50.4]} 41. g5 {[%clk 0:00:19.7]} 41... Kg8 {[%clk 0:00:51.1]}
42. Be4 {[%clk 0:00:17.2]} 42... Qe7 {[%clk 0:00:48.9]} 43. Qf5 {[%clk
0:00:17.7]} 43... Rg6 {[%clk 0:00:46.5]} 44. Qf4 {[%clk 0:00:17.2]} 44... Ng4+
{[%clk 0:00:40.9]} 45. Qxg4 {[%clk 0:00:14.1]} 45... Qxe4 {[%clk 0:00:41.8]} 46.
Qxe4 {[%clk 0:00:04.6]} 46... Rxe4 {[%clk 0:00:42.3]} 47. Rf5 {[%clk 0:00:05.6]}
47... Re3 {[%clk 0:00:41.9]} 48. Bf6 {[%clk 0:00:06.1]} 48... h6 {[%clk
0:00:38.7]} 49. c5 {[%clk 0:00:07]} 49... dxc5 {[%clk 0:00:39.5]} 50. d6 {[%clk
0:00:08]} 50... Rd3 {[%clk 0:00:38.6]} 51. Rxc5 {[%clk 0:00:09.2]} 51... Rxf6
{[%clk 0:00:40]} 52. gxf6 {[%clk 0:00:09.9]} 52... Rxd6 {[%clk 0:00:41.1]} 53.
Rc7 {[%clk 0:00:11.3]} 53... Rd5 {[%clk 0:00:40.1]} 54. Rxb7 {[%clk 0:00:12.1]}
54... Rxa5 {[%clk 0:00:41.2]} 55. Kg3 {[%clk 0:00:12.6]} 55... Rg5+ {[%clk
0:00:38]} 56. Kf4 {[%clk 0:00:12.8]} 56... a5 {[%clk 0:00:39.2]} 57. h4 {[%clk
0:00:13.3]} 57... Rd5 {[%clk 0:00:40.3]} 58. Ke4 {[%clk 0:00:13.7]} 58... Rh5
{[%clk 0:00:41.2]} 59. Kf4 {[%clk 0:00:07.7]} 59... Rxh4+ {[%clk 0:00:42.3]} 60.
Ke5 {[%clk 0:00:09]} 60... Rb4 {[%clk 0:00:42]} 61. Ra7 {[%clk 0:00:09.6]} 61...
Rxb3 {[%clk 0:00:43.3]} 62. Rxa5 {[%clk 0:00:08.8]} 62... Kh7 {[%clk 0:00:44.5]}
63. Ra2 {[%clk 0:00:06.7]} 63... Rb5+ {[%clk 0:00:45.3]} 64. Kf4 {[%clk
0:00:07.5]} 64... Kg6 {[%clk 0:00:46]} 65. Ra6 {[%clk 0:00:07.4]} 65... Rf5+
{[%clk 0:00:46.2]} 66. Kg4 {[%clk 0:00:08.7]} 66... Rxf6 {[%clk 0:00:47.5]} 67.
Ra8 {[%clk 0:00:10]} 67... h5+ {[%clk 0:00:48.1]} 68. Kg3 {[%clk 0:00:11.2]}
68... Kg5 {[%clk 0:00:49.3]} 69. Rg8+ {[%clk 0:00:11.5]} 69... Rg6 {[%clk
0:00:50.5]} 70. Ra8 {[%clk 0:00:12.7]} 70... f5 {[%clk 0:00:48.9]} 71. Ra7
{[%clk 0:00:12.8]} 71... Rb6 {[%clk 0:00:46.6]} 72. Rg7+ {[%clk 0:00:12.8]}
72... Kf6 {[%clk 0:00:47.9]} 73. Ra7 {[%clk 0:00:13.8]} 73... Rb4 {[%clk
0:00:47.3]} 74. Ra8 {[%clk 0:00:13.6]} 74... h4+ {[%clk 0:00:48]} 75. Kf3 {[%clk
0:00:13.4]} 75... h3 {[%clk 0:00:46.8]} 76. Kg3 {[%clk 0:00:13.2]} 76... Rb3+
{[%clk 0:00:47.6]} 77. Kh2 {[%clk 0:00:14.6]} 77... Kg5 {[%clk 0:00:48.7]} 78.
Ra4 {[%clk 0:00:14.3]} 78... f4 {[%clk 0:00:48.5]} 79. Ra8 {[%clk 0:00:10.8]}
79... Kg4 {[%clk 0:00:49.8]} 80. Rg8+ {[%clk 0:00:10]} 80... Kf5 {[%clk
0:00:50.5]} 81. Rf8+ {[%clk 0:00:10.5]} 81... Ke4 {[%clk 0:00:51.8]} 82. Ra8
{[%clk 0:00:11.3]} 82... Kf3 {[%clk 0:00:47.6]} 83. Ra7 {[%clk 0:00:09.2]} 83...
Re3 {[%clk 0:00:46.7]} 84. Rb7 {[%clk 0:00:09.8]} 84... Kf2 {[%clk 0:00:47.6]}
85. Rb2+ {[%clk 0:00:09.5]} 85... Re2 {[%clk 0:00:48.4]} 86. Rb3 {[%clk
0:00:10.8]} 86... Kf1+ {[%clk 0:00:48]} 87. Kxh3 {[%clk 0:00:11.3]} 87... Re3+
{[%clk 0:00:49]} 0-1

[Event "*** Titled Tuesday 3|2 Blitz"]
[Site "Chess.com"]
[Date "2016.01.05"]
[Round "3"]
[White "AsafGivon"]
[Black "Rating-Schmating"]
[Result "1-0"]
[WhiteElo "2272"]
[BlackElo "2127"]
[TimeControl "180+2"]
[EndTime "11:30:31 PST"]
[Termination "AsafGivon won by resignation"]

1. e4 {[%clk 0:03:01.9]} 1... e6 {[%clk 0:02:59.7]} 2. d4 {[%clk 0:03:02.6]}
2... d5 {[%clk 0:03:00.5]} 3. Nc3 {[%clk 0:03:04.2]} 3... Nf6 {[%clk 0:03:01.3]}
4. e5 {[%clk 0:03:05.2]} 4... Nfd7 {[%clk 0:03:01.9]} 5. f4 {[%clk 0:03:06.9]}
5... c5 {[%clk 0:03:02.5]} 6. Nf3 {[%clk 0:03:08.5]} 6... Nc6 {[%clk 0:03:03.3]}
7. Be3 {[%clk 0:03:10.1]} 7... cxd4 {[%clk 0:03:01.9]} 8. Nxd4 {[%clk 0:03:12]}
8... Nxd4 {[%clk 0:03:02.3]} 9. Bxd4 {[%clk 0:03:12.4]} 9... Bc5 {[%clk
0:03:02.4]} 10. Qd2 {[%clk 0:02:53.1]} 10... Bxd4 {[%clk 0:02:57.1]} 11. Qxd4
{[%clk 0:02:55]} 11... Qb6 {[%clk 0:02:57.4]} 12. Qxb6 {[%clk 0:02:56.1]} 12...
Nxb6 {[%clk 0:02:59.3]} 13. Bd3 {[%clk 0:02:53.7]} 13... Bd7 {[%clk 0:02:58.7]}
14. Ne2 {[%clk 0:02:50.1]} 14... O-O {[%clk 0:02:56]} 15. Nd4 {[%clk 0:02:48.6]}
15... Rac8 {[%clk 0:02:56.4]} 16. b3 {[%clk 0:02:43]} 16... Be8 {[%clk
0:02:45.3]} 17. Kd2 {[%clk 0:02:41.7]} 17... a6 {[%clk 0:02:45.2]} 18. h4 {[%clk
0:02:42.2]} 18... Nd7 {[%clk 0:02:46.1]} 19. Rae1 {[%clk 0:02:40.9]} 19... Nc5
{[%clk 0:02:47.1]} 20. h5 {[%clk 0:02:42.3]} 20... b5 {[%clk 0:02:39.5]} 21. g4
{[%clk 0:02:37.4]} 21... b4 {[%clk 0:02:39.4]} 22. f5 {[%clk 0:02:37.2]} 22...
a5 {[%clk 0:02:38.6]} 23. Ref1 {[%clk 0:02:22.5]} 23... exf5 {[%clk 0:02:10.4]}
24. gxf5 {[%clk 0:02:11.7]} 24... Bd7 {[%clk 0:02:08.8]} 25. f6 {[%clk
0:01:55.5]} 25... Ne6 {[%clk 0:01:48.3]} 26. Nf5 {[%clk 0:01:52.4]} 26... Rcd8
{[%clk 0:01:42.9]} 27. fxg7 {[%clk 0:01:50.9]} 27... Rfe8 {[%clk 0:01:40.5]} 28.
Rhg1 {[%clk 0:01:49.1]} 1-0